fUST/lending_fUST_20240805
["ID","MTS","AMOUNT","RATE_DAILY","PERIOD"]
[334187702,1722819044792,-778.83,0.00013698,2]
[334187704,1722819044802,-500.0,0.00013698,2]
[334187706,1722819044812,-500.0,0.00013698,2]
[334187708,1722819044823,-500.0,0.00013698,2]
[334187710,1722819044834,-500.0,0.00013698,2]
[334187712,1722819044848,-500.0,0.00013698,2]
[334187714,1722819044858,-500.0,0.00013698,2]
[334187717,1722819044868,-622.58,0.00013698,2]
[334187719,1722819044879,-500.0,0.00013698,2]
[334187720,1722819044889,-500.0,0.00013698,2]
[334187723,1722819044906,-500.0,0.00013698,2]
[334187725,1722819044916,-500.0,0.00013698,2]
[334187727,1722819044927,-500.0,0.00013698,2]
[334187729,1722819044938,-1009.22,0.00013698,2]
[334187731,1722819044948,-500.0,0.00013698,2]
[334187733,1722819044959,-500.0,0.00013698,2]
[334187735,1722819044969,-500.0,0.00013698,2]
[334187737,1722819044979,-578.58,0.00013698,2]
[334187739,1722819044989,-500.0,0.00013698,2]
[334187741,1722819044999,-500.0,0.00013698,2]
[334187743,1722819045008,-500.0,0.00013698,2]
[334187745,1722819045019,-500.0,0.00013698,2]
[334187747,1722819045029,-500.0,0.00013698,2]
[334187749,1722819045039,-500.0,0.00013698,2]
[334187750,1722819045048,-500.0,0.00013698,2]
[334187752,1722819045058,-500.0,0.00013698,2]
[334187754,1722819045069,-500.0,0.00013698,2]
[334187756,1722819045079,-556.38,0.00013698,2]
[334187758,1722819045089,-500.0,0.00013698,2]
[334187760,1722819045100,-647.15,0.00013698,2]
[334187762,1722819045110,-500.0,0.00013698,2]
[334187764,1722819045119,-500.0,0.00013698,2]
[334187766,1722819045129,-500.0,0.00013698,2]
[334187785,1722819045305,-500.0,0.00013698,2]
[334187787,1722819045315,-500.0,0.00013698,2]
[334187789,1722819045325,-500.0,0.00013698,2]
[334187791,1722819045336,-500.0,0.00013698,2]
[334187793,1722819045345,-500.0,0.00013698,2]
[334187795,1722819045355,-500.0,0.00013698,2]
[334187797,1722819045365,-500.0,0.00013698,2]
[334187799,1722819045375,-500.0,0.00013698,2]
[334187801,1722819045385,-500.0,0.00013698,2]
[334187802,1722819045394,-500.0,0.00013698,2]
[334187804,1722819045408,-500.0,0.00013698,2]
[334187806,1722819045417,-500.0,0.00013698,2]
[334187808,1722819045427,-938.31,0.00013698,2]
[334187809,1722819045436,-500.0,0.00013698,2]
[334187811,1722819045446,-500.0,0.00013698,2]
[334187813,1722819045456,-500.0,0.00013698,2]
[334187815,1722819045466,-500.0,0.00013698,2]
[334187817,1722819045476,-500.0,0.00013698,2]
[334187819,1722819045486,-1787.71,0.00013698,2]
[334187821,1722819045496,-500.0,0.00013698,2]
[334187823,1722819045506,-500.0,0.00013698,2]
[334187824,1722819045516,-500.0,0.00013698,2]
[334187826,1722819045526,-330.97617755,0.00013698,2]
[334187827,1722819045535,-500.0,0.00013698,2]
[334187829,1722819045545,-500.0,0.00013698,2]
[334187832,1722819045556,-500.0,0.00013698,2]
[334187834,1722819045567,-500.0,0.00013698,2]
[334187836,1722819045578,-500.0,0.00013698,2]
[334187837,1722819045588,-500.0,0.00013698,2]
[334187839,1722819045598,-500.0,0.00013698,2]
[334187841,1722819045608,-500.0,0.00013698,2]
[334187843,1722819045618,-500.0,0.00013698,2]
[334187844,1722819045628,-500.0,0.00013698,2]
[334187846,1722819045638,-1800.98,0.00013698,2]
[334187848,1722819045648,-500.0,0.00013698,2]
[334187850,1722819045661,-500.0,0.00013698,2]
[334187851,1722819045670,-1176.010466,0.00013699,2]
[334187853,1722819045679,-3000.0,0.00013699,2]
[334187856,1722819045688,-500.0,0.00013749,2]
[334187858,1722819045698,-13987.8963813,0.00013962,2]
[334187859,1722819045708,-500.0,0.00013971,2]
[334187860,1722819045718,-500.0,0.00013972,2]
[334187862,1722819045729,-500.0,0.00013972,2]
[334187863,1722819045739,-500.0,0.00013972,2]
[334187865,1722819045748,-500.0,0.00013972,2]
[334187867,1722819045758,-500.0,0.00013972,2]
[334187869,1722819045769,-500.0,0.00013972,2]
[334187871,1722819045780,-500.0,0.00013972,2]
[334187873,1722819045790,-560.15,0.00013972,2]
[334187875,1722819045799,-558.15626069,0.00013972,2]
[334187877,1722819045809,-500.0,0.00013972,2]
[334187878,1722819045820,-500.0,0.00013972,2]
[334187880,1722819045829,-500.0,0.00013972,2]
[334187882,1722819045841,-500.0,0.00013972,2]
[334187884,1722819045851,-500.0,0.00013972,2]
[334187886,1722819045867,-500.0,0.00013972,2]
[334187888,1722819045878,-500.0,0.00013972,2]
[334187890,1722819045888,-378.39,0.00013972,2]
[334187891,1722819045902,-500.0,0.00013972,2]
[334187893,1722819045912,-778.83,0.00013972,2]
[334187894,1722819045922,-500.0,0.00013972,2]
[334187895,1722819045932,-500.0,0.00013972,2]
[334187896,1722819045943,-500.0,0.00013972,2]
[334187897,1722819045952,-442.58,0.00013972,2]
[334187899,1722819045962,-500.0,0.00013972,2]
[334187901,1722819045971,-500.0,0.00013972,2]
[334187903,1722819045981,-500.0,0.00013972,2]
[334187905,1722819045991,-500.0,0.00013972,2]
[334187907,1722819046000,-500.0,0.00013972,2]
[334187908,1722819046009,-1009.22,0.00013972,2]
[334187910,1722819046019,-500.0,0.00013972,2]
[334187911,1722819046029,-500.0,0.00013972,2]
[334187912,1722819046038,-500.0,0.00013972,2]
[334187913,1722819046048,-578.58,0.00013972,2]
[334187914,1722819046059,-500.0,0.00013972,2]
[334187915,1722819046069,-500.0,0.00013972,2]
[334187916,1722819046079,-500.0,0.00013972,2]
[334187917,1722819046089,-500.0,0.00013972,2]
[334187918,1722819046098,-500.0,0.00013972,2]
[334187919,1722819046109,-500.0,0.00013972,2]
[334187920,1722819046118,-500.0,0.00013972,2]
[334187921,1722819046128,-500.0,0.00013972,2]
[334187922,1722819046138,-556.38,0.00013972,2]
[334187923,1722819046148,-500.0,0.00013972,2]
[334187924,1722819046163,-647.15,0.00013972,2]
[334187925,1722819046173,-238.74,0.00013972,2]
[334187926,1722819046183,-500.0,0.00013972,2]
[334187927,1722819046192,-500.0,0.00013972,2]
[334187928,1722819046202,-500.0,0.00013972,2]
[334187929,1722819046212,-500.0,0.00013972,2]
[334187931,1722819046222,-500.0,0.00013972,2]
[334187933,1722819046232,-500.0,0.00013972,2]
[334187934,1722819046242,-500.0,0.00013972,2]
[334187935,1722819046251,-500.0,0.00013972,2]
[334187937,1722819046261,-500.0,0.00013972,2]
[334187938,1722819046272,-500.0,0.00013972,2]
[334187939,1722819046282,-500.0,0.00013972,2]
[334187940,1722819046292,-500.0,0.00013972,2]
[334187941,1722819046301,-938.31,0.00013972,2]
[334187943,1722819046311,-500.0,0.00013972,2]
[334187945,1722819046320,-500.0,0.00013972,2]
[334187947,1722819046330,-500.0,0.00013972,2]
[334187949,1722819046340,-500.0,0.00013972,2]
[334187951,1722819046351,-1787.71,0.00013972,2]
[334187953,1722819046361,-500.0,0.00013972,2]
[334187955,1722819046370,-500.0,0.00013972,2]
[334187957,1722819046380,-500.0,0.00013972,2]
[334187959,1722819046390,-500.0,0.00013972,2]
[334187961,1722819046404,-500.0,0.00013972,2]
[334187963,1722819046413,-500.0,0.00013972,2]
[334187965,1722819046422,-500.0,0.00013972,2]
[334187967,1722819046432,-500.0,0.00013972,2]
[334187969,1722819046442,-500.0,0.00013972,2]
[334187971,1722819046452,-500.0,0.00013972,2]
[334187973,1722819046463,-1800.98,0.00013972,2]
[334187975,1722819046473,-500.0,0.00013972,2]
[334187977,1722819046482,-1495.50653034,0.00014215,2]
[334187979,1722819046491,-160.49428263,0.00014234,2]
[334187981,1722819046501,-373.3407988,0.00014234,2]
[334187983,1722819046511,-500.0,0.00014234,2]
[334187985,1722819046520,-500.0,0.00014234,2]
[334187987,1722819046530,-500.0,0.00014234,2]
[334187989,1722819046540,-215.99901868,0.00014234,2]
[334187991,1722819046551,-500.0,0.00014234,2]
[334187993,1722819046561,-500.0,0.00014234,2]
[334187995,1722819046572,-500.0,0.00014234,2]
[334187997,1722819046583,-500.0,0.00014234,2]
[334187999,1722819046593,-13987.8963813,0.00014235,2]
[334188002,1722819046610,-500.0,0.00014246,2]
[334188005,1722819046623,-500.0,0.00014246,2]
[334188007,1722819046634,-500.0,0.00014246,2]
[334188009,1722819046644,-500.0,0.00014246,2]
[334188011,1722819046657,-500.0,0.00014246,2]
[334188013,1722819046669,-500.0,0.00014246,2]
[334188015,1722819046679,-500.0,0.00014246,2]
[334188017,1722819046690,-500.0,0.00014246,2]
[334188019,1722819046700,-500.0,0.00014246,2]
[334188021,1722819046711,-500.0,0.00014246,2]
[334188023,1722819046721,-500.0,0.00014246,2]
[334188025,1722819046731,-500.0,0.00014246,2]
[334188027,1722819046742,-500.0,0.00014246,2]
[334188029,1722819046753,-500.0,0.00014246,2]
[334188031,1722819046763,-500.0,0.00014246,2]
[334188033,1722819046773,-778.83,0.00014246,2]
[334188035,1722819046782,-500.0,0.00014246,2]
[334188037,1722819046794,-500.0,0.00014246,2]
[334188039,1722819046805,-500.0,0.00014246,2]
[334188041,1722819046816,-500.0,0.00014246,2]
[334188043,1722819046827,-500.0,0.00014246,2]
[334188045,1722819046840,-500.0,0.00014246,2]
[334188047,1722819046851,-500.0,0.00014246,2]
[334188049,1722819046865,-500.0,0.00014246,2]
[334188051,1722819046876,-1009.22,0.00014246,2]
[334188054,1722819046888,-500.0,0.00014246,2]
[334188056,1722819046901,-500.0,0.00014246,2]
[334188058,1722819046911,-500.0,0.00014246,2]
[334188060,1722819046921,-578.58,0.00014246,2]
[334188062,1722819046933,-500.0,0.00014246,2]
[334188064,1722819046944,-500.0,0.00014246,2]
[334188066,1722819046954,-500.0,0.00014246,2]
[334188068,1722819046965,-500.0,0.00014246,2]
[334188070,1722819046975,-500.0,0.00014246,2]
[334188072,1722819046986,-500.0,0.00014246,2]
[334188074,1722819046996,-500.0,0.00014246,2]
[334188076,1722819047006,-500.0,0.00014246,2]
[334188079,1722819047019,-556.38,0.00014246,2]
[334188081,1722819047030,-500.0,0.00014246,2]
[334188083,1722819047040,-647.15,0.00014246,2]
[334188085,1722819047051,-500.0,0.00014246,2]
[334188087,1722819047062,-500.0,0.00014246,2]
[334188089,1722819047073,-500.0,0.00014246,2]
[334188091,1722819047083,-500.0,0.00014246,2]
[334188093,1722819047094,-500.0,0.00014246,2]
[334188095,1722819047104,-618.75025676,0.00014246,2]
[334188097,1722819047114,-500.0,0.00014246,2]
[334188099,1722819047123,-500.0,0.00014246,2]
[334188101,1722819047134,-500.0,0.00014246,2]
[334188103,1722819047144,-500.0,0.00014246,2]
[334188106,1722819047156,-500.0,0.00014246,2]
[334188108,1722819047166,-500.0,0.00014246,2]
[334188110,1722819047176,-938.31,0.00014246,2]
[334188112,1722819047186,-500.0,0.00014246,2]
[334188114,1722819047196,-500.0,0.00014246,2]
[334188116,1722819047206,-500.0,0.00014246,2]
[334188118,1722819047216,-1787.71,0.00014246,2]
[334188120,1722819047226,-500.0,0.00014246,2]
[334188122,1722819047236,-500.0,0.00014246,2]
[334188124,1722819047246,-55.15197265,0.00014246,2]
[334188127,1722819047269,-444.84802735,0.00014246,2]
[334188129,1722819047279,-500.0,0.00014246,2]
[334188131,1722819047289,-500.0,0.00014246,2]
[334188133,1722819047299,-500.0,0.00014246,2]
[334188135,1722819047309,-500.0,0.00014246,2]
[334188137,1722819047319,-500.0,0.00014246,2]
[334188139,1722819047330,-1800.98,0.00014246,2]
[334188141,1722819047340,-478.738871,0.00014247,2]
[334188143,1722819047350,-169.146938,0.00014247,2]
[334188145,1722819047360,-500.0,0.00014297,2]
[334188147,1722819047369,-500.0,0.00014388,2]
[334188149,1722819047379,-1447.13,0.00014388,2]
[334188150,1722819047388,-500.0,0.00014388,2]
[334188152,1722819047398,-500.0,0.00014388,2]
[334188155,1722819047411,-269.8,0.00014409,2]
[334188156,1722819047422,-2000.0,0.0001442,2]
[334188158,1722819047432,-304.55759302,0.0001451,2]
[334188161,1722819047445,-763.96154133,0.0001451,2]
[334188178,1722819047607,-253.57473726,9.999e-05,2]
[334188180,1722819047617,-500.0,0.00013697,2]
[334188182,1722819047627,-500.0,0.00013749,2]
[334188184,1722819047636,-500.0,0.00013971,2]
[334188186,1722819047646,-500.0,0.00014245,2]
[334188188,1722819047661,-500.0,0.00014409,2]
[334188190,1722819047672,-500.0,0.00014419,2]
[334188192,1722819047682,-12919.37724695,0.0001451,2]
[334188194,1722819047692,-500.0,0.0001452,2]
[334188196,1722819047702,-500.0,0.0001452,2]
[334188198,1722819047712,-500.0,0.0001452,2]
[334188200,1722819047721,-500.0,0.0001452,2]
[334188202,1722819047732,-500.0,0.0001452,2]
[334188204,1722819047742,-500.0,0.0001452,2]
[334188206,1722819047751,-282.35,0.0001452,2]
[334188208,1722819047761,-500.0,0.0001452,2]
[334188210,1722819047770,-500.0,0.0001452,2]
[334188212,1722819047780,-500.0,0.0001452,2]
[334188214,1722819047790,-500.0,0.0001452,2]
[334188216,1722819047799,-500.0,0.0001452,2]
[334188218,1722819047809,-500.0,0.0001452,2]
[334188220,1722819047819,-500.0,0.0001452,2]
[334188222,1722819047829,-500.0,0.0001452,2]
[334188224,1722819047841,-778.83,0.0001452,2]
[334188226,1722819047851,-500.0,0.0001452,2]
[334188228,1722819047861,-500.0,0.0001452,2]
[334188230,1722819047870,-500.0,0.0001452,2]
[334188232,1722819047881,-500.0,0.0001452,2]
[334188234,1722819047892,-500.0,0.0001452,2]
[334188236,1722819047904,-500.0,0.0001452,2]
[334188238,1722819047916,-500.0,0.0001452,2]
[334188240,1722819047928,-500.0,0.0001452,2]
[334188242,1722819047939,-1009.22,0.0001452,2]
[334188244,1722819047950,-500.0,0.0001452,2]
[334188246,1722819047960,-500.0,0.0001452,2]
[334188248,1722819047972,-500.0,0.0001452,2]
[334188250,1722819047982,-578.58,0.0001452,2]
[334188252,1722819047992,-500.0,0.0001452,2]
[334188253,1722819048002,-500.0,0.0001452,2]
[334188255,1722819048011,-500.0,0.0001452,2]
[334188257,1722819048021,-500.0,0.0001452,2]
[334188259,1722819048030,-500.0,0.0001452,2]
[334188261,1722819048040,-500.0,0.0001452,2]
[334188263,1722819048049,-500.0,0.0001452,2]
[334188265,1722819048059,-500.0,0.0001452,2]
[334188267,1722819048069,-556.38,0.0001452,2]
[334188269,1722819048078,-500.0,0.0001452,2]
[334188271,1722819048088,-647.15,0.0001452,2]
[334188273,1722819048098,-500.0,0.0001452,2]
[334188275,1722819048107,-500.0,0.0001452,2]
[334188277,1722819048117,-500.0,0.0001452,2]
[334188279,1722819048127,-500.0,0.0001452,2]
[334188281,1722819048137,-500.0,0.0001452,2]
[334188283,1722819048147,-500.0,0.0001452,2]
[334188285,1722819048164,-500.0,0.0001452,2]
[334188287,1722819048173,-500.0,0.0001452,2]
[334188289,1722819048183,-500.0,0.0001452,2]
[334188291,1722819048192,-500.0,0.0001452,2]
[334188293,1722819048202,-500.0,0.0001452,2]
[334188295,1722819048211,-938.31,0.0001452,2]
[334188297,1722819048221,-500.0,0.0001452,2]
[334188299,1722819048230,-500.0,0.0001452,2]
[334188301,1722819048239,-500.0,0.0001452,2]
[334188303,1722819048249,-1787.71,0.0001452,2]
[334188305,1722819048259,-500.0,0.0001452,2]
[334188307,1722819048269,-500.0,0.0001452,2]
[334188309,1722819048278,-233.38399383,0.0001452,2]
[334188311,1722819048289,-500.0,0.0001452,2]
[334188313,1722819048298,-129.68656296,0.0001452,2]
[334188503,1722819071679,21895.63864315,0.000269,120]
[334188539,1722820197749,1477.93975373,0.000269,120]
[334188681,1722820233013,-422.024069,9.513e-05,2]
[334188683,1722820233028,-1023.85156672,9.513e-05,2]
[334188686,1722820233038,-106.12843328,9.609e-05,2]
[334188689,1722820233053,-1978.36517362,9.609e-05,2]
[334188692,1722820233064,-1000.0,9.798e-05,2]
[334188696,1722820233076,-300.0,9.998e-05,2]
[334188698,1722820233087,-160.1642143,9.999e-05,2]
[334188700,1722820233098,-600.8534117,9.999e-05,2]
[334188703,1722820233108,-205.1880395,9.999e-05,2]
[334188706,1722820233119,-188.2335741,9.999e-05,2]
[334188709,1722820233133,-154.83742071,9.999e-05,2]
[334188711,1722820233145,-158.02915901,9.999e-05,2]
[334188713,1722820233155,-156.73199194,9.999e-05,2]
[334188715,1722820233167,-183.10678503,9.999e-05,2]
[334188718,1722820233178,-568.56884199,9.999e-05,2]
[334188720,1722820233209,-319.72766707,9.999e-05,2]
[334188723,1722820233220,-154.83742071,9.999e-05,2]
[334188726,1722820233231,-154.83742071,9.999e-05,2]
[334188729,1722820233243,-519.59956575,9.999e-05,2]
[334188732,1722820233262,-163.06705816,9.999e-05,2]
[334188735,1722820233273,-523.06806918,9.999e-05,2]
[334188738,1722820233285,-342.05014288,9.999e-05,2]
[334188741,1722820233299,-154.83742071,9.999e-05,2]
[334188744,1722820233311,-201.4758121,9.999e-05,2]
[334188746,1722820233322,-209.86849569,9.999e-05,2]
[334188748,1722820233336,-403.74175046,9.999e-05,2]
[334188750,1722820233349,-154.83742071,9.999e-05,2]
[334188752,1722820233360,-240.80307792,9.999e-05,2]
[334188754,1722820233372,-154.83742071,9.999e-05,2]
[334188756,1722820233383,-244.84557874,9.999e-05,2]
[334188758,1722820233395,-209.18351946,9.999e-05,2]
[334188760,1722820233406,-154.83742071,9.999e-05,2]
[334188762,1722820233417,-426.9441554,9.999e-05,2]
[334188765,1722820233429,-727.52933543,9.999e-05,2]
[334188767,1722820233440,-138.9926356,9.999e-05,2]
[334188769,1722820233456,-367.48927268,9.999e-05,2]
[334188771,1722820233468,-288.53209712,9.999e-05,2]
[334188773,1722820233480,-196.46943428,9.999e-05,2]
[334188775,1722820233492,-174.52933502,9.999e-05,2]
[334188777,1722820233503,-199.2298609,9.999e-05,2]
[334188779,1722820233517,-323.03026284,9.999e-05,2]
[334188781,1722820233529,-156.61103376,9.999e-05,2]
[334188783,1722820233540,-779.66389887,9.999e-05,2]
[334188785,1722820233551,-115.3234201,9.999e-05,2]
[334188787,1722820233565,-548.91569179,9.999e-05,2]
[334188789,1722820233578,-736.2701751,9.999e-05,2]
[334188791,1722820233590,-942.61257937,9.999e-05,2]
[334188793,1722820233601,-550.45825757,9.999e-05,2]
[334188798,1722820233641,-257.38115438,9.999e-05,2]
[334188799,1722820233654,-287.77266661,0.0001,2]
[334188801,1722820233664,-663.15,0.00010959,2]
[334188803,1722820233675,-420.0,0.00010998,2]
[334188805,1722820233686,-13282.36769581,0.0001109,2]
[334188808,1722820233717,-11617.63230419,0.0001109,2]
[334188810,1722820233729,-587.0,0.00012098,2]
[334188812,1722820233740,-3548.67483173,0.000129,2]
[334188814,1722820233750,-375.0,0.00013307,2]
[334188816,1722820233762,-848.86751905,0.00013598,2]
[334188818,1722820233773,-1048.92225478,0.00013689,2]
[334188820,1722820233786,-14588.74493127,0.00013689,2]
[334188884,1722820239838,-1945.60288355,0.00013689,2]
[334188886,1722820239853,-589.6,0.00013697,2]
[334188888,1722820239864,-500.0,0.00013698,2]
[334188892,1722820240019,-501.62849366,0.00013698,2]
[334188893,1722820240030,-500.0,0.00013698,2]
[334188894,1722820240042,-500.0,0.00013698,2]
[334188895,1722820240052,-501.63043693,0.00013698,2]
[334188896,1722820240067,-500.0,0.00013698,2]
[334188897,1722820240077,-319.30675189,0.00013698,2]
[334188898,1722820240088,-500.0,0.00013698,2]
[334188899,1722820240099,-512.61951995,0.00013698,2]
[334188900,1722820240109,-500.0,0.00013698,2]
[334188901,1722820240120,-500.0,0.00013698,2]
[334188902,1722820240131,-500.0,0.00013698,2]
[334188903,1722820240142,-500.0,0.00013698,2]
[334188904,1722820240154,-505.89842754,0.00013698,2]
[334188905,1722820240171,-500.0,0.00013698,2]
[334188906,1722820240182,-500.0,0.00013698,2]
[334188907,1722820240194,-418.38639117,0.00013698,2]
[334188908,1722820240205,-500.0,0.00013698,2]
[334188909,1722820240216,-281.84427593,0.00013698,2]
[334188910,1722820240227,-500.0,0.00013698,2]
[334188911,1722820240238,-502.38791263,0.00013698,2]
[334188912,1722820240268,-500.0,0.00013698,2]
[334188913,1722820240279,-506.04768019,0.00013698,2]
[334188914,1722820240291,-502.50595691,0.00013698,2]
[334188915,1722820240306,-502.04092398,0.00013698,2]
[334188916,1722820240318,-503.03196668,0.00013698,2]
[334188917,1722820240329,-518.48478815,0.00013698,2]
[334188918,1722820240342,-505.95776416,0.00013698,2]
[334188919,1722820240354,-500.0,0.00013698,2]
[334188920,1722820240366,-329.71812564,0.00013698,2]
[334188921,1722820240383,-500.0,0.00013698,2]
[334188922,1722820240394,-500.0,0.00013698,2]
[334188923,1722820240405,-500.0,0.00013698,2]
[334188924,1722820240416,-500.0,0.00013698,2]
[334188925,1722820240427,-500.0,0.00013698,2]
[334188927,1722820240438,-500.0,0.00013698,2]
[334188929,1722820240449,-502.13422759,0.00013698,2]
[334188930,1722820240462,-407.70705544,0.00013698,2]
[334188932,1722820240474,-423.23939365,0.00013698,2]
[334188933,1722820240489,-270.26495792,0.00013698,2]
[334188934,1722820240500,-500.0,0.00013698,2]
[334188935,1722820240512,-251.62794152,0.00013698,2]
[334188936,1722820240523,-157.2737572,0.00013698,2]
[334188937,1722820240533,-500.0,0.00013698,2]
[334188938,1722820240545,-572.1989556,0.00013698,2]
[334188939,1722820240556,-502.99563501,0.00013698,2]
[334188940,1722820240567,-503.74758123,0.00013698,2]
[334188941,1722820240579,-501.45660108,0.00013698,2]
[334188942,1722820240595,-500.0,0.00013698,2]
[334188943,1722820240607,-531.12445954,0.00013698,2]
[334188945,1722820240619,-501.69542303,0.00013698,2]
[334188947,1722820240632,-441.04839971,0.00013698,2]
[334188948,1722820240642,-506.41407044,0.00013698,2]
[334188950,1722820240654,-500.0,0.00013698,2]
[334188952,1722820240665,-500.0,0.00013698,2]
[334188954,1722820240676,-565.42129225,0.00013698,2]
[334188956,1722820240687,-171.44871386,0.00013698,2]
[334188958,1722820240702,-500.19911398,0.00013698,2]
[334188960,1722820240715,-501.50865686,0.00013698,2]
[334188961,1722820240726,-500.0,0.00013698,2]
[334188963,1722820240738,-500.0,0.00013698,2]
[334188965,1722820240771,-559.41918924,0.00013698,2]
[334188967,1722820240782,-500.0,0.00013698,2]
[334188969,1722820240794,-459.13022802,0.00013698,2]
[334188970,1722820241017,-441.01270524,0.00013698,2]
[334188972,1722820241028,-500.0,0.00013698,2]
[334188974,1722820241040,-500.0,0.00013698,2]
[334188976,1722820241051,-225.97639669,0.00013698,2]
[334188977,1722820241062,-503.04313927,0.00013698,2]
[334188979,1722820241073,-500.0,0.00013698,2]
[334188981,1722820241084,-500.0,0.00013698,2]
[334188983,1722820241094,-500.0,0.00013698,2]
[334188985,1722820241105,-500.0,0.00013698,2]
[334188986,1722820241124,-500.0,0.00013698,2]
[334188988,1722820241136,-500.0,0.00013698,2]
[334188990,1722820241147,-330.56446103,0.00013698,2]
[334188992,1722820241158,-500.0,0.00013698,2]
[334188994,1722820241169,-500.0,0.00013698,2]
[334188996,1722820241181,-500.0,0.00013698,2]
[334188998,1722820241192,-500.0,0.00013698,2]
[334189000,1722820241204,-500.0,0.00013698,2]
[334189002,1722820241219,-501.50089784,0.00013698,2]
[334189003,1722820241234,-500.0,0.00013698,2]
[334189005,1722820241251,-500.0,0.00013698,2]
[334189007,1722820241272,-500.0,0.00013698,2]
[334189009,1722820241283,-726.936155,0.00013699,2]
[334189011,1722820241298,-3000.0,0.00013699,2]
[334189013,1722820241310,-500.0,0.00013699,2]
[334189015,1722820241322,-500.0,0.00013699,2]
[334189017,1722820241336,-500.0,0.00013699,2]
[334189019,1722820241350,-500.0,0.00013699,2]
[334189021,1722820241362,-217.6683176,0.00013699,2]
[334189023,1722820241374,-500.0,0.00013699,2]
[334189025,1722820241386,-500.0,0.00013699,2]
[334189027,1722820241397,-500.0,0.00013699,2]
[334189029,1722820241408,-500.0,0.00013699,2]
[334189031,1722820241419,-500.0,0.00013699,2]
[334189032,1722820241430,-153.72390036,0.00013699,2]
[334189034,1722820241444,-150.112233,0.000137,2]
[334189036,1722820241456,-1072.64289192,0.00013852,2]
[334189039,1722820241472,-3015.01908132,0.00013852,2]
[334189041,1722820241484,-1388.9449698,0.00013872,2]
[334189043,1722820241499,-25226.87002044,0.00013872,2]
[334189045,1722820241513,-10.78240267,0.00013872,2]
[334189047,1722820241524,-17583.2700696,0.00013962,2]
[334189049,1722820241535,-261.33855916,0.0001397,2]
[334189051,1722820241548,-500.0,0.0001397,2]
[334189053,1722820241560,-601.19931308,0.0001397,2]
[334189055,1722820241571,-500.0,0.0001397,2]
[334189058,1722820241595,-500.0,0.0001397,2]
[334189060,1722820241608,-500.0,0.0001397,2]
[334189062,1722820241620,-500.0,0.00013971,2]
[334189064,1722820241632,-589.6,0.00013971,2]
[334189066,1722820241653,-502.99462561,0.00013972,2]
[334189068,1722820241665,-511.38063845,0.00013972,2]
[334189070,1722820241676,-505.01203829,0.00013972,2]
[334189072,1722820241688,-500.0,0.00013972,2]
[334189074,1722820241700,-471.30843291,0.00013972,2]
[334189076,1722820241712,-500.0,0.00013972,2]
[334189078,1722820241725,-503.49873024,0.00013972,2]
[334189080,1722820241737,-500.0,0.00013972,2]
[334189083,1722820241748,-500.0,0.00013972,2]
[334189084,1722820241761,-500.0,0.00013972,2]
[334189087,1722820241787,-587.49702241,0.00013972,2]
[334189089,1722820241800,-521.29875226,0.00013972,2]
[334189091,1722820241812,-500.0,0.00013972,2]
[334189093,1722820241827,-500.0,0.00013972,2]
[334189095,1722820241838,-504.18676755,0.00013972,2]